[Event "German Bundesliga 2021-22"]
[Site "Germany"]
[Date "2022.04.30"]
[Round "5.14"]
[White "Heimann, Andreas"]
[Black "Mueller, Nick"]
[Result "1/2-1/2"]
[ECO "D15"]
[WhiteElo "2581"]
[BlackElo "2375"]
[Annotator "TA"]
[PlyCount "68"]
[EventDate "2022.03.05"]
[EventType "team-tourn"]
[EventCountry "GER"]
[SourceTitle "playchess.com"]
[Source "ChessBase"]
[SourceQuality "1"]
[TimeControl "40/5400+30:1800+30"]

{[%evp 9,68,19,31,17,22,17,14,18,19,17,18,16,15,22,22,14,18,14,12,8,10,9,21,9,16,-10,24,24,25,27,30,0,0,0,0,-7,0,0,0,-40,-33,-38,0,-34,-44,-43,-49,-58,-68,-63,0,0,0,0,0,0,0,0,0,0,0]} 1. d4 {[%emt 0:00:00]} d5 {[%emt 0:00:00]} 2. c4 {[%emt 0:00:00]} c6 {[%emt 0:00:00]} 3. Nf3 {[%emt 0:00:00]} Nf6 {[%emt 0:00:00]} 4. e3 {[%emt 0:00:00]} Bf5 {[%emt 0:00:00]} 5. Nc3 {[%emt 0:00:00]} a6 {[%emt 0:00:00]} 6. Bd3 {[%emt 0:00:00] D15: Slav Defence: 4 Nc3 a6 and gambit lines after 4 Nc3 dxc4.} Bxd3 {[%emt 0:00:30]} 7. Qxd3 {[%emt 0:00:00]} e6 {[%emt 0:00:30]} 8. O-O {[%emt 0:00:00]} Nbd7 {[%emt 0:09:30]} 9. e4 {[%emt 0:13:00]} dxe4 {[%emt 0:02:30]} 10. Nxe4 {[%emt 0:00:00]} Nxe4 {[%emt 0:01:30]} 11. Qxe4 {[%emt 0:00:00]} Be7 {[%emt 0:01:30]} 12. Bf4 {[%emt 0:06:30]} O-O {[%emt 0:01:30]} 13. Rad1 {[%emt 0:09:30]} Qa5 {[%emt 0:07:30]} 14. Qc2 {[%emt 0:09:30]} Rac8 {[%emt 0:09:30] [#]} 15. Rfe1 $146 {[%emt 0:03:30]} ({Predecessor:} 15. a3 Rfe8 16. Rfe1 Bf6 17. b4 Qh5 18. h3 a5 19. Qe4 axb4 20. axb4 Qg6 21. Qxg6 hxg6 {0-1 (47) Shulman,Y (2542)-Zhou,W (2616) Ningbo 2013}) 15... Rfd8 {[%emt 0:05:30]} 16. a3 {[%emt 0:04:30]} Nf8 {[%emt 0:12:30]} 17. Be5 {[%emt 0:30:30]} Bd6 {[%emt 0:04:30]} 18. b4 {[%emt 0:03:38]} Qc7 {[%emt 0:00:30]} (18... Qxa3 $2 19. Bxd6 Rxd6 20. Ra1 Qxb4 21. Reb1 Qxb1+ 22. Rxb1 $18) 19. c5 {[%emt 0:03:46]} Bxe5 {[%emt 0:00:30]} 20. dxe5 {[%emt 0:02:51]} Rd5 {[%emt 0:00:30]} 21. h4 {[%emt 0:03:01]} Rcd8 {[%emt 0:02:30][%cal Bc8d8,Bd8d5,Bd5d3][%mdl 32]} 22. h5 {[%emt 0:00:07]} h6 {[%emt 0:01:30]} 23. Rxd5 {[%emt 0:01:42]} Rxd5 {[%emt 0:00:30]} 24. Qe4 {[%emt 0:02:37]} Qd8 {[%emt 0:01:30]} 25. Qf4 {[%emt 0:00:53]} Rd3 {[%emt 0:04:30]} 26. Re3 {[%emt 0:00:25]} Qd5 {[%emt 0:01:30]} 27. g4 {[%emt 0:01:16]} Rd1+ {[%emt 0:01:30]} 28. Kg2 {[%emt 0:00:38]} Nh7 $1 {[%emt 0:02:30]} 29. Qe4 {[%emt 0:00:05]} Ng5 {[%emt 0:01:30]} (29... Qd8 $15) 30. Qxd5 $11 {[%emt 0:01:50] The position is equal.} cxd5 {[%emt 0:01:30]} 31. Re1 {[%emt 0:03:31]} Rd3 {[%emt 0:06:30][%csl LRa3,LRf3]} 32. Re3 {[%emt 0:00:04]} Rd1 {[%emt 0:03:58]} 33. Re1 {[%emt 0:00:04]} Rd3 {[%emt 0:00:30][%csl LRa3,LRf3]} 34. Re3 {[%emt 0:00:06]} Rd1 {[%emt 0:00:07] Weighted Error Value: White=0.06 (flawless) /Black=0.05 (flawless)} 1/2-1/2

[Event "German Bundesliga 2021-22"]
[Site "Germany"]
[Date "2022.04.30"]
[Round "5.14"]
[White "Radovanovic, Nikola"]
[Black "Maiwald, Jens-Uwe"]
[Result "0-1"]
[ECO "B41"]
[WhiteElo "2423"]
[BlackElo "2430"]
[Annotator "TA"]
[PlyCount "82"]
[EventDate "2022.03.05"]
[EventType "team-tourn"]
[EventCountry "GER"]
[SourceTitle "playchess.com"]
[Source "ChessBase"]
[SourceQuality "1"]
[TimeControl "40/5400+30:1800+30"]

{[%evp 20,82,46,25,63,58,85,86,86,75,107,47,70,45,46,35,30,16,40,11,69,13,45,39,47,18,100,33,54,0,48,0,11,12,78,54,68,-11,-2,-14,6,-30,-24,-220,-224,-179,-60,-403,-409,-629,-631,-729,-716,-702,-688,-1202,-1141,-988,-645,-29987,-1512,-29981,-29977,-29968,-2066]} 1. e4 {[%emt 0:00:00]} c5 {[%emt 0:00:00]} 2. Nf3 {[%emt 0:00:00]} e6 {[%emt 0:00:00]} 3. d4 {[%emt 0:00:00]} cxd4 {[%emt 0:00:00]} 4. Nxd4 {[%emt 0:00:00]} a6 {[%emt 0:00:00]} 5. c4 {[%emt 0:00:00]} Nf6 {[%emt 0:00:00]} 6. Nc3 {[%emt 0:00:00]} Qc7 {[%emt 0:00:00]} 7. Be2 {[%emt 0:00:00]} b6 {[%emt 0:01:48]} 8. O-O {[%emt 0:00:00]} Bb7 {[%emt 0:00:07]} 9. Qd3 {[%emt 0:00:00]} d6 {[%emt 0:02:48]} 10. f4 {[%emt 0:00:36]} Nbd7 {[%emt 0:19:23]} 11. b4 {[%emt 0:02:43]} Be7 {[%emt 0:11:01] B41: Sicilian: Kan Variation: 5 c4.} 12. a3 {[%emt 0:06:29]} g6 {[%emt 0:04:06] [#]} 13. Bd2 $146 {[%emt 0:13:43]} ({Predecessor:} 13. Bb2 O-O 14. Rac1 Rac8 15. g4 e5 16. g5 Ne8 17. Nf3 Qd8 18. Nd5 exf4 19. Qd4 {½-½ (45) Kyshtymov,D (2032)-Sukhareva,E (2234) Voronezh 2018}) 13... Rc8 {[%emt 0:08:34] White is better.} 14. Rac1 {[%emt 0:08:09]} Qb8 {[%emt 0:00:12]} 15. Nb3 {[%emt 0:05:42]} (15. Qe3 $16) 15... O-O {[%emt 0:07:04]} 16. Bf3 {[%emt 0:19:40]} Rfd8 {[%emt 0:03:24]} 17. Qe2 {[%emt 0:05:16]} Bf8 {[%emt 0:05:54]} 18. g4 {[%emt 0:09:11][%cal Bg2g4,Bg4g5][%mdl 32]} Bg7 $1 {[%emt 0:00:28]} 19. g5 {[%emt 0:02:37]} Ne8 {[%emt 0:00:08]} (19... Nh5 $1 $11) 20. Bg2 {[%emt 0:01:21]} (20. h4 $14) 20... Rc7 {[%emt 0:01:11]} 21. Nd1 {[%emt 0:02:26]} Qa8 {[%emt 0:10:42]} 22. Nf2 {[%emt 0:07:03]} f5 {[%emt 0:00:34]} (22... Rdc8 $1 $11 {remains equal.}) 23. Bc3 {[%emt 0:06:53]} ({Better is} 23. gxf6 $16 Nexf6 24. a4) 23... e5 {[%emt 0:04:34]} 24. Nd2 {[%emt 0:00:43]} (24. Bh3 $14) 24... exf4 {[%emt 0:10:12]} (24... Nf8 $1 $11) 25. Nd3 {[%emt 0:02:15]} (25. Nh3 $1 $14) 25... Bxc3 {[%emt 0:03:36]} 26. Rxc3 {[%emt 0:00:06] With the idea exf5.} Ng7 {[%emt 0:00:12]} (26... f3 $1 $11 27. Bxf3 Ng7) 27. Nxf4 $16 {[%emt 0:02:51]} Re8 {[%emt 0:00:48][%cal Rf5e4]} 28. Qd3 {[%emt 0:02:12]} (28. c5 $1 $14 d5 29. Qd1 (29. c6 Rxc6 30. Nxd5 Rxc3 $15)) 28... Ne5 $11 {[%emt 0:00:18]} 29. Qd4 {[%emt 0:01:21]} ({Don't go for} 29. Qxd6 $2 Rd7 30. Qxb6 Rxd2 $19) 29... Rf7 {[%emt 0:01:04]} 30. exf5 {[%emt 0:01:34]} (30. Qxd6 $2 Rd7 31. Qxb6 Rxd2 $19) 30... Nxf5 {[%emt 0:00:07]} 31. Qxb6 {[%emt 0:00:30]} (31. Bxb7 $1 $11 {and White stays safe.} Nxd4 32. Bxa8 Rxa8 33. Kg2) 31... Bxg2 $19 {[%emt 0:02:04]} 32. Nxg2 {[%emt 0:00:03]} d5 {[%emt 0:00:05]} (32... Ng4 $1 $19 {White must now prevent ...Rb8.} 33. Rd3 (33. Re1 $2 Nh4 $19) 33... Re2) 33. c5 $2 {[%emt 0:01:58][%mdl 8192]} (33. Ne3 $1 $15) 33... d4 {[%emt 0:00:20]} 34. Rh3 {[%emt 0:00:24]} (34. Rcc1 $142 Ne3 35. c6 (35. Nxe3 $2 dxe3 36. Rxf7 exd2 $19) 35... Nxf1 36. Rxf1) 34... Nd7 {[%emt 0:02:29]} 35. Qc7 {[%emt 0:00:53] [#]} Re2 $1 {[%emt 0:00:23][%csl Ge2,LRd2,LRg2][%cal Ra8g2]} 36. Nf3 {[%emt 0:01:12]} Nf8 {[%emt 0:01:31]} 37. Qb6 {[%emt 0:00:35] [#]} Rxg2+ {[%emt 0:00:26][%mdl 576] Remove Defender, Decoy} 38. Kxg2 {[%emt 0:00:03]} Ne3+ {[%emt 0:00:06] Pair of Knights!} 39. Kf2 {[%emt 0:00:59]} Nxf1 {[%emt 0:00:22]} (39... Qe4 $142 40. Rg1 Qc2+ 41. Kg3 Nf5+ 42. Kf4 Nd6+ 43. Kg3 Nf5+ 44. Kf4 Nh4+ 45. Qf6 Rxf6+ 46. gxf6 Qf5+ 47. Kg3 Qxf3+ 48. Kxh4 Qf2+ 49. Rhg3 Qxh2+ 50. Rh3 Qxg1 51. Rh1 Qxh1+ 52. Kg4 d3 53. Kf4 d2 54. Kg3 d1=Q 55. f7+ Kxf7 56. Kf4 Qdf3+ 57. Kg5 h6#) 40. c6 {[%emt 0:00:23] [#]} Qc8 $1 {[%emt 0:01:31]} 41. Rh4 {[%emt 0:00:00] [#]} (41. Qxd4 Qxh3) 41... Nd2 {[%emt 0:00:00] Weighted Error Value: White=0.96/Black=0.38} (41... Qf5 $142 $1 42. Qxd4 Qxf3+ 43. Ke1 Re7+ 44. Re4 Rxe4+ 45. Qxe4 Qxe4+ 46. Kxf1 Qxc6 47. Kf2 Qc3 48. h4 Ne6 49. Ke2 Nd4+ 50. Kf2 Qf3+ 51. Kg1 Ne2+ 52. Kh2 Qg3+ 53. Kh1 Qh3#) 0-1

[Event "German Bundesliga 2021-22"]
[Site "Germany"]
[Date "2022.04.30"]
[Round "5.14"]
[White "Sonntag, Hans-Hubert"]
[Black "Novikov, Igor"]
[Result "0-1"]
[ECO "D04"]
[WhiteElo "2322"]
[BlackElo "2551"]
[Annotator "TA"]
[PlyCount "47"]
[EventDate "2022.03.05"]
[EventType "team-tourn"]
[EventCountry "GER"]
[SourceTitle "playchess.com"]
[Source "ChessBase"]
[SourceQuality "1"]
[TimeControl "40/5400+30:1800+30"]

{[%evp 15,47,11,26,11,15,22,36,10,19,11,18,14,13,-29,-31,-39,-31,-47,-47,-31,-27,-36,-55,-57,-49,-141,-127,-144,-143,-162,-177,-1068,-204,-226]} 1. d4 {[%emt 0:00:00]} d5 {[%emt 0:00:00]} 2. Nf3 {[%emt 0:00:00]} Nf6 {[%emt 0:00:00]} 3. e3 {[%emt 0:00:00]} c5 {[%emt 0:00:00]} 4. c4 {[%emt 0:00:00]} e6 {[%emt 0:00:00]} 5. Nc3 {[%emt 0:00:00]} a6 {[%emt 0:00:00]} 6. a3 {[%emt 0:00:00]} Nc6 {[%emt 0:00:00]} 7. dxc5 {[%emt 0:00:00]} Bxc5 {[%emt 0:00:00]} 8. b4 {[%emt 0:00:00]} Bd6 {[%emt 0:00:00]} 9. Bb2 {[%emt 0:00:00] D40: Queen's Gambit Declined: Semi-Tarrasch with 5 e3.} dxc4 {[%emt 0:21:30]} 10. Bxc4 {[%emt 0:00:00] [#]} Qe7 $146 {[%emt 0:00:56]} ({Predecessor:} 10... O-O 11. O-O b5 12. Bd3 Ne5 13. Nxb5 Nxd3 14. Bxf6 Bxh2+ 15. Nxh2 Qxf6 16. Nc7 Ra7 17. Nxe6 Bxe6 18. Qxd3 Rd8 19. Qe2 {1-0 (45) Lenic,L (2617)-Jelen,I (2376) Sentjur 2013}) 11. Qe2 {[%emt 0:08:26] White is slightly better.} Bd7 {[%emt 0:02:08]} 12. O-O {[%emt 0:07:13]} Rc8 {[%emt 0:02:18]} 13. Bd3 {[%emt 0:03:09]} O-O {[%emt 0:10:53]} 14. e4 {[%emt 0:13:11] [#] aiming for e5.} Ne5 {[%emt 0:09:46]} 15. Nxe5 {[%emt 0:01:21]} Bxe5 {[%emt 0:00:04]} 16. Nd1 {[%emt 0:03:37][%cal Bc3d1,Bd1e3,Be3c4,Bc4b2,Bb2d3][%mdl 32]} Qd6 {[%emt 0:05:13]} 17. Bxe5 {[%emt 0:00:39]} Qxe5 {[%emt 0:00:03]} 18. Ne3 {[%emt 0:01:52]} Rc3 {[%emt 0:06:25]} ({Much less strong is} 18... Nxe4 19. Ng4 Qc7 20. Bxe4 $14 (20. Qxe4 f5 $11)) 19. Nc4 {[%emt 0:07:50]} Qd4 {[%emt 0:01:48]} 20. Rad1 {[%emt 0:10:52]} (20. Rfd1 $1 $15) 20... Bb5 $36 {[%emt 0:04:48][%cal Rb5c4][%mdl 2048] Black is in control.} 21. Nb2 {[%emt 0:04:17]} Bxd3 {[%emt 0:01:57] Black is more active.} 22. Nxd3 {[%emt 0:01:24]} Rxa3 {[%emt 0:03:21]} ({Don't play} 22... Nxe4 23. Nc5 Qc4 24. Qxe4 $18) 23. Ra1 $2 {[#]} (23. Rfe1) 23... Rc3 $2 (23... Rxa1 24. Rxa1 Qxa1+ 25. Qe1 Qxe1+ 26. Nxe1 Nxe4) 24. Rfd1 {Weighted Error Value: White=0.69/Black=0.56} 0-1

[Event "German Bundesliga 2021-22"]
[Site "Germany"]
[Date "2022.04.30"]
[Round "5.15"]
[White "Hausrath, Daniel"]
[Black "Meessen, Rudolf"]
[Result "1-0"]
[ECO "A04"]
[WhiteElo "2475"]
[BlackElo "2239"]
[Annotator "TA"]
[PlyCount "111"]
[EventDate "2022.03.05"]
[EventType "team-tourn"]
[EventCountry "GER"]
[SourceTitle "playchess.com"]
[Source "ChessBase"]
[SourceQuality "1"]
[TimeControl "40/5400+30:1800+30"]

{[%evp 12,111,67,56,52,27,49,47,53,49,55,44,45,33,22,26,26,22,8,-13,31,51,59,53,63,70,62,25,24,32,85,47,69,24,36,0,-5,-6,-3,-3,-6,-8,-7,-10,65,0,119,108,108,92,101,101,220,88,92,86,81,81,96,77,86,76,82,50,105,85,89,106,98,95,100,93,127,110,120,96,227,232,432,431,414,407,400,360,980,930,5501,2247,5346,1042,6418,6270,29962,29967,29982,29983,29983,29980,29980,29981,29984,29983]} 1. Nf3 {[%emt 0:00:00]} d6 {[%emt 0:00:00]} 2. d4 {[%emt 0:00:00]} g6 {[%emt 0:00:00]} 3. g3 {[%emt 0:00:00]} Bg7 {[%emt 0:00:00]} 4. Bg2 {[%emt 0:00:00]} e5 {[%emt 0:00:00]} 5. dxe5 {[%emt 0:00:00]} dxe5 {[%emt 0:00:00]} 6. Qxd8+ {[%emt 0:00:00]} Kxd8 {[%emt 0:00:00]} 7. Nc3 {[%emt 0:00:00] 7.0-0 deserves study.} c6 {[%emt 0:00:00] A41: 1 d4 d6: Tartakower System and Modern Defence.} 8. Be3 {[%emt 0:00:00][%cal Bc1e3,Be3c5,Bc5d6][%mdl 32]} f6 {[%emt 0:00:00]} 9. O-O-O+ {[%emt 0:00:00]} Kc7 {[%emt 0:00:00] White is slightly better.} 10. Bc5 {[%emt 0:03:43] [#] And now Bd6+ would win.} Be6 {[%emt 0:00:00]} 11. Bd6+ {[%emt 0:13:12]} Kc8 {[%emt 0:00:00] [#]} 12. Nd2 $146 {[%emt 0:00:20]} ({Predecessor:} 12. h4 h5 13. Ne4 Nh6 14. Be7 Nd7 15. Rd6 Bf5 16. Nxf6 Nf7 17. Nxd7 Nxd6 18. Bxd6 Kxd7 19. Bxe5 {0-1 (49) Donchenko,A (2572)-Valderrama Quiceno,E (2406) Chess.com INT 2016}) 12... Nh6 {[%emt 0:00:00]} 13. Nde4 {[%emt 0:01:37] aiming for Nc5.} Nd7 {[%emt 0:01:02]} 14. h4 {[%emt 0:39:40]} Nf7 {[%emt 0:01:16]} 15. Ba3 {[%emt 0:02:36]} f5 {[%emt 0:30:03]} 16. Ng5 {[%emt 0:01:13]} Nxg5 {[%emt 0:00:57]} 17. hxg5 {[%emt 0:00:02]} h5 {[%emt 0:08:55]} 18. e4 {[%emt 0:03:07]} Bf8 $1 {[%emt 0:10:26] Prevents Rd6.} 19. Bxf8 {[%emt 0:05:42]} Nxf8 {[%emt 0:04:57]} 20. exf5 {[%emt 0:09:38]} gxf5 {[%emt 0:08:51]} (20... Bxf5 $14 21. Rde1 Nd7) 21. Rhe1 {[%emt 0:04:35]} Nd7 {[%emt 0:04:04]} 22. Rd6 {[%emt 0:04:15]} Re8 {[%emt 0:00:07]} 23. Bf3 {[%emt 0:00:07]} Kc7 {[%emt 0:02:02]} 24. Red1 {[%emt 0:01:34]} Re7 {[%emt 0:02:02]} 25. Bxh5 {[%emt 0:00:28]} Rh8 {[%emt 0:08:58]} 26. Be2 $132 {[%emt 0:01:39][%mdl 2048] White puts up resistance} Rh2 {[%emt 0:03:47]} 27. f4 {[%emt 0:01:39]} e4 {[%emt 0:01:01] Against R6d3} (27... Rf2 $11) 28. g6 {[%emt 0:03:33]} (28. R6d4 $14) 28... Rg2 {[%emt 0:00:40]} (28... Rh6 $11 {remains equal.}) 29. g4 $1 $16 {[%emt 0:00:42]} ({Worse is} 29. g7 Rxg3 30. Rxe6 Rxe6 $17) 29... fxg4 {[%emt 0:07:12]} 30. g7 $1 {[%emt 0:00:09][%cal Od6e6]} Bg8 {[%emt 0:00:13]} 31. Rg6 {White is more active.} Re6 {[%emt 0:03:43] [#]} (31... Rf2 $16 {was necessary.}) 32. Rxg4 {[%emt 0:03:52]} (32. Rxe6 $1 $18 {is the precise move to win. Strongly threatening Re7.} Bxe6 33. Rh1) 32... Rg6 {[%emt 0:00:58]} 33. Rxg6 {[%emt 0:00:22]} Rxg6 {[%emt 0:00:02]} 34. Nxe4 {[%emt 0:00:14][%cal Oe2g4]} Rxg7 35. Ng5 Nf6 {[%emt 0:03:02]} 36. Bf3 {[%emt 0:01:08]} Re7 {[%emt 0:01:42]} 37. Rh1 {[%emt 0:01:10]} Nd5 {[%emt 0:01:41]} (37... Bd5 $14) 38. Rh8 {[%emt 0:00:39]} Rg7 {[%emt 0:00:44]} 39. Bxd5 {[%emt 0:00:51]} Bxd5 {[%emt 0:00:03][%mdl 4096] Endgame KRB-KRN} 40. b3 {[%emt 0:00:41]} b5 {[%emt 0:00:30] Against c4} 41. Kd2 {[%emt 0:31:09]} Kd6 {[%emt 0:00:00]} 42. Kd3 {[%emt 0:00:00]} Kc5 {[%emt 0:00:00] Inhibits c4.} 43. Rh7 {[%emt 0:00:00]} Rxh7 {[%emt 0:00:00] Loses the game.} (43... Rg8 $16 {was called for.}) 44. Nxh7 {[%emt 0:00:00] Ng5 is the strong threat. KB-KN} Bf7 $2 {[%emt 0:00:00]} (44... Kd6 {was worth a try.} 45. Ng5 Bg2) 45. f5 $18 {[%emt 0:00:00] Hoping for Ng5.} Kd6 {[%emt 0:01:12]} 46. Ke4 {[%emt 0:00:00]} a5 {[%emt 0:03:59]} 47. Ng5 {[%emt 0:00:00]} Bd5+ {[%emt 0:01:09]} (47... Bh5 48. c3 a4 49. bxa4 bxa4) 48. Kf4 {[%emt 0:00:00]} a4 {[%emt 0:03:40]} 49. Ne4+ {[%emt 0:00:00]} (49. bxa4 $142 bxa4 50. Ne4+ Ke7 51. a3) 49... Kc7 {[%emt 0:06:37]} 50. Ke5 {[%emt 0:00:00]} (50. bxa4 $142 bxa4 51. a3) 50... b4 {[%emt 0:01:40]} 51. Nc5 {[%emt 0:00:00]} axb3 {[%emt 0:00:17]} 52. axb3 {[%emt 0:00:00] White mates.} Kb6 {[%emt 0:03:27] Against Na6} 53. Ne6 {[%emt 0:00:00]} Bf3 {[%emt 0:00:25]} 54. f6 {[%emt 0:00:00]} Bh5 {[%emt 0:00:04]} 55. Kd6 {[%emt 0:00:00]} Bg6 {[%emt 0:01:21]} 56. Ke7 {[%emt 0:00:00] Weighted Error Value: White=0.13 (very precise) /Black=0.41} 1-0

[Event "German Bundesliga 2021-22"]
[Site "Germany"]
[Date "2022.04.30"]
[Round "5.15"]
[White "Sebastian, Dirk"]
[Black "Wagner, Dennis"]
[Result "1/2-1/2"]
[ECO "C50"]
[WhiteElo "2445"]
[BlackElo "2584"]
[Annotator "TA"]
[PlyCount "60"]
[EventDate "2022.03.05"]
[EventType "team-tourn"]
[EventCountry "GER"]
[SourceTitle "playchess.com"]
[Source "ChessBase"]
[SourceQuality "1"]
[TimeControl "40/5400+30:1800+30"]

{[%evp 10,60,20,9,18,8,13,6,11,12,11,11,33,0,7,0,0,0,0,0,0,0,0,0,0,0,14,0,0,0,30,25,34,15,37,16,30,35,52,54,63,52,87,61,64,0,0,0,81,0,0,0,79]} 1. e4 {[%emt 0:00:00]} e5 {[%emt 0:00:00]} 2. Nf3 {[%emt 0:00:00]} Nc6 {[%emt 0:00:00]} 3. Bc4 {[%emt 0:00:00]} Nf6 {[%emt 0:00:00]} 4. d3 {[%emt 0:00:00]} Bc5 {[%emt 0:00:00]} 5. O-O {[%emt 0:00:00]} d6 {[%emt 0:00:00]} 6. c3 {[%emt 0:00:00]} a5 {[%emt 0:00:00] 6...h6 is becoming the main line. C54: Giuoco Piano: 4 c3 Nf6, main lines with 5 d4 and 5 d3.} 7. Re1 {[%emt 0:00:00]} O-O {[%emt 0:00:00]} 8. h3 {[%emt 0:00:00]} Be6 {[%emt 0:00:00]} 9. Bb5 {[%emt 0:04:46]} Ba7 {[%emt 0:00:00]} 10. d4 {[%emt 0:13:50] [#] d5 is the strong threat.} Bd7 {[%emt 0:00:00][%cal Oc6d4]} 11. Ba4 {[%emt 0:05:08] [#]} Re8 $146 {[%emt 0:00:00]} ({Predecessor:} 11... h6 12. Be3 Re8 {0-1 (12) Gimenes,H (2176)-Cruz Ramirez,E (1600) LSS email 2020}) 12. Bc2 {[%emt 0:00:33]} h6 {[%emt 0:00:00]} 13. a4 {[%emt 0:19:07]} exd4 {[%emt 0:03:31]} 14. cxd4 {[%emt 0:00:25]} Nb4 {[%emt 0:00:07]} 15. Nc3 {[%emt 0:00:12]} Nxc2 {[%emt 0:00:06]} 16. Qxc2 {[%emt 0:00:03]} c6 {[%emt 0:00:35]} 17. Bd2 {[%emt 0:07:49]} Be6 {[%emt 0:04:12]} 18. Rac1 {[%emt 0:12:01]} d5 {[%emt 0:27:36]} 19. e5 {[%emt 0:00:13]} Nd7 {[%emt 0:00:07]} (19... Ne4 $5) 20. Be3 {[%emt 0:13:12]} Nf8 {[%emt 0:01:30]} 21. Ne2 {[%emt 0:01:01]} f6 {[%emt 0:06:42]} 22. Ng3 {[%emt 0:02:47]} fxe5 {[%emt 0:07:46]} 23. Nxe5 {[%emt 0:00:32]} Qf6 {[%emt 0:01:05]} 24. f4 {[%emt 0:02:46]} Bf7 {[%emt 0:11:05]} 25. Qf2 {[%emt 0:02:45] White is much more active.} Nh7 {[%emt 0:14:43]} 26. Qf3 {[%emt 0:02:26]} Rad8 {[%emt 0:06:27]} 27. Nh5 {[%emt 0:05:20]} (27. Bf2 $14) 27... Qf5 {[%emt 0:02:13]} (27... Bxh5 $11 28. Qxh5 Re7) 28. Ng3 $16 {[%emt 0:00:45]} Qf6 {[%emt 0:02:12]} 29. Nh5 {[%emt 0:00:05] Pair of Knights!} Qf5 {[%emt 0:00:05]} 30. Ng3 {[%emt 0:01:08]} Qf6 {Weighted Error Value: White=0.12 (very precise) /Black=0.07 (flawless)} 1/2-1/2

[Event "German Bundesliga 2021-22"]
[Site "Germany"]
[Date "2022.04.30"]
[Round "5.15"]
[White "Gauglitz, Gernot"]
[Black "Ciolek, Andreas"]
[Result "0-1"]
[ECO "E63"]
[WhiteElo "2392"]
[BlackElo "2194"]
[Annotator "TA"]
[PlyCount "75"]
[EventDate "2022.03.05"]
[EventType "team-tourn"]
[EventCountry "GER"]
[SourceTitle "playchess.com"]
[Source "ChessBase"]
[SourceQuality "1"]
[TimeControl "40/5400+30:1800+30"]

{[%evp 16,75,35,7,26,0,10,9,41,2,8,0,0,-22,-27,-45,-43,-69,0,0,0,0,0,-87,0,0,48,-31,-41,-63,2,-39,-15,-106,-99,-100,-100,-120,-125,-128,-105,-130,-121,-133,-116,-129,-131,-120,-126,-175,-158,-269,-281,-261,-252,-264,0,-264,0,0,0,0]} 1. d4 {[%emt 0:00:00]} Nf6 {[%emt 0:00:00]} 2. Nf3 {[%emt 0:00:00]} g6 {[%emt 0:00:00]} 3. g3 {[%emt 0:00:00]} Bg7 {[%emt 0:00:00]} 4. Bg2 {[%emt 0:00:00]} O-O {[%emt 0:00:00]} 5. O-O {[%emt 0:00:00]} d6 {[%emt 0:00:00]} 6. c4 {[%emt 0:00:00]} Nc6 {[%emt 0:00:00]} 7. Nc3 {[%emt 0:00:00]} a6 {[%emt 0:00:00]} 8. b3 {[%emt 0:00:00] is currently scoring better than 8.h3.} Rb8 {[%emt 0:00:00]} 9. a4 {[%emt 0:00:00]} Bd7 {[%emt 0:00:00] E63: King's Indian: Fianchetto: Panno Variation with 7...a6.} 10. h3 {[%emt 0:00:00]} e5 {[%emt 0:00:00]} 11. d5 {[%emt 0:04:54]} Nd4 {[%emt 0:10:52]} 12. Ne1 {[%emt 0:15:20]} b5 {[%emt 0:04:35]} 13. cxb5 {[%emt 0:01:10]} axb5 {[%emt 0:00:07]} 14. e3 {[%emt 0:00:06]} Nf5 {[%emt 0:01:42][%cal Oe5e4] [#]} 15. a5 $146 {[%emt 0:07:08]} ({Predecessor:} 15. Bd2 Qc8 16. Kh2 bxa4 17. bxa4 Qa6 18. Qc2 c6 19. dxc6 Bxc6 20. Bxc6 Qxf1 21. Bc1 Qxe1 {½-½ (84) Rustemov,A (2525)-Antonio,V (2397) Chess.com INT 2021}) 15... b4 {[%emt 0:02:46]} 16. Ne2 {[%emt 0:01:23]} Rb5 {[%emt 0:08:32] Black is more active.} (16... Ne7 $15) 17. e4 $11 {[%emt 0:04:42]} Ne7 {[%emt 0:02:57]} 18. a6 {[%emt 0:10:10]} c5 {[%emt 0:10:03]} 19. Bb2 {[%emt 0:04:39]} (19. f4 $11 {remains equal.} Nh5 20. a7) 19... Ne8 {[%emt 0:04:34]} ({Black should try} 19... Ra5 $17 {Strongly threatening ...Rxa1.} 20. f4 exf4) 20. f4 {[%emt 0:00:12]} f6 {[%emt 0:04:18]} (20... exf4 $11 21. Qd2 (21. Bxg7 Nxg7 22. Qd2 fxg3 $11) 21... fxg3) 21. Nf3 {[%emt 0:01:30]} (21. g4 $14) 21... Qa8 {[%emt 0:06:25]} (21... Rb6 {keeps more tension.} 22. fxe5 fxe5 23. Ng5 Rf6) 22. g4 {[%emt 0:04:11]} h6 {[%emt 0:06:13]} (22... Rb6 $1 $15) 23. fxe5 {[%emt 0:14:35]} fxe5 {[%emt 0:01:38]} 24. Nd2 {[%emt 0:04:04] [#]} (24. g5 $1 $11 {keeps the balance.}) 24... Rb6 $1 $17 {[%emt 0:01:21]} 25. Rxf8+ {[%emt 0:00:19]} Bxf8 {[%emt 0:00:53]} 26. a7 {[%emt 0:06:31]} Rb7 {[%emt 0:00:51][%cal Bb6b7,Bb7a7,Ba7a2][%mdl 32]} 27. Nc4 {[%emt 0:01:23][%cal Oc4d6]} Rxa7 {[%emt 0:01:44]} 28. Rc1 {[%emt 0:04:51]} Bg7 {[%emt 0:02:32][%cal Bf8g7,Bg7f6,Bf6h4][%mdl 32]} 29. Ng3 {[%emt 0:00:15]} Bb5 {[%emt 0:05:50]} 30. Bf1 {[%emt 0:02:26]} Bxc4 {[%emt 0:00:38]} 31. Bxc4 {[%emt 0:00:02]} Bf6 {[%emt 0:00:28]} 32. Qf3 {[%emt 0:01:33]} (32. Qd3 $17 {might work better.}) 32... Ra2 $19 {[%emt 0:02:11]} 33. Qf2 {[%emt 0:10:46]} (33. Qe2 $17) 33... Bh4 {[%emt 0:02:37] Hoping for ...Bxg3.} 34. Rf1 {[%emt 0:02:16] White wants to mate with Qf8+.} Nf6 {[%emt 0:00:24]} (34... Rxb2 $2 {gets mated.} 35. Qf8+ Kh7 36. Rf7+) 35. Bd3 {[%emt 0:00:46] [#]} Kg7 $2 {[%emt 0:03:43]} (35... Qf8 $1 $19 {Threatens to win with ...Kg7.} 36. Kg2 Qf7) 36. Kh2 $2 {[%emt 0:00:44][%mdl 8192]} (36. Nh5+ $1 $11 {and White stays safe.} gxh5 37. Qxh4) 36... Nexd5 $2 {[%emt 0:08:37]} 37. exd5 $11 {[%emt 0:00:40]} Qxd5 {[%emt 0:00:08] Dancing on a razor blade.} 38. Bc4 {[%emt 0:02:54][%mdl 32768] Weighted Error Value: White=0.41/Black=0.31. Loss on time!?} 0-1